Workbook

Sheet Disclaimer
B9: Die Berechnungshilfe wurde sorgfältig erstellt und auf Richtigkeit geprüft.
B10: Für eine fehlerfreie Funktion kann dennoch nicht garantiert werden.
B11: Eine Haftung des Erstellers wird hiermit ausdrücklich ausgeschlossen.

Sheet Anschlussleitungen
A2: Berechnung Druckluftnetz
A3: Anschlussleitungen
A5: Bauvorhaben: | C5: Tierklinik Oberhaching
A7: Projekt-Nr.: | C7: 11-25
A9: Datum: | C9: 2012-01-26
A12: Teilstrecke | C12: 6 | D12: 7 | E12: 8 | F12: 9 | G12: 13 | H12: 14 | I12: 16 | J12: 17
A14: Leitungsdurchmesser Vorauswahl | B14: DN | C14: 12 | D14: 12 | E14: 12 | F14: 12 | G14: 12 | H14: 12 | I14: 12 | J14: 12
A15: Versorgungsüberdruck | B15: pÜ in bar | C15: 15 | D15: 15 | E15: 15 | F15: 15 | G15: 15 | H15: 15 | I15: 15 | J15: 15
A16: Betriebstemperatur | B16: TB in °C | C16: 20 | D16: 20 | E16: 20 | F16: 20 | G16: 20 | H16: 20 | I16: 20 | J16: 20
A17: Druckluftbedarf | B17: VN in Nm³/h | C17: 1.5 | D17: 1.5 | E17: 1.5 | F17: 1.5 | G17: 1.5 | H17: 1.5 | I17: 1.5 | J17: 5.6
A18: Gleichzeitigkeit | C18: 1 | D18: 1 | E18: 1 | F18: 1 | G18: 1 | H18: 1 | I18: 1 | J18: 1
A19: Mittlere Einschaltdauer | B19: ED | C19: 0.5 | D19: 0.5 | E19: 0.5 | F19: 0.5 | G19: 0.5 | H19: 0.5 | I19: 0.5 | J19: 0.5
A20: Zuschlag für Leckage | B20: v | C20: 0.05 | D20: 0.05 | E20: 0.05 | F20: 0.05 | G20: 0.05 | H20: 0.05 | I20: 0.05 | J20: 0.05
A21: Reserve für Erweiterung | B21: r | C21: 0 | D21: 0 | E21: 0 | F21: 0 | G21: 0 | H21: 0 | I21: 0 | J21: 0
A22: Volumenstrom | B22: VN in Nm³/h | C22: =(C17*C18*C19)*(1+C20) -> 0.7875 | D22: =(D17*D18*D19)*(1+D20) -> 0.7875 | E22: 0.7875 | F22: 0.7875 | G22: 0.7875 | H22: 0.7875 | I22: 0.7875 | J22: 2.94
A23: Betriebsvolumenstrom | B23: VB in Nm³/h | C23: =C22*1.01325*(273+C16)/(C15+1.01325)/273 -> 0.05348015586 | D23: =D22*1.01325*(273+D16)/(D15+1.01325)/273 -> 0.05348015586 | E23: 0.05348015586 | F23: 0.05348015586 | G23: 0.05348015586 | H23: 0.05348015586 | I23: 0.05348015586 | J23: 0.1996592485
A24: Fließgeschwindigkeit | B24: v in m/s | C24: =C23/3600/(POWER(C14/1000,2)/4*PI()) -> 0.1313523327 | D24: =D23/3600/(POWER(D14/1000,2)/4*PI()) -> 0.1313523327 | E24: 0.1313523327 | F24: 0.1313523327 | G24: 0.1313523327 | H24: 0.1313523327 | I24: 0.1313523327 | J24: 0.4903820422
A25: Druckverlust | B25: R in mbar/m | C25: 0.02 | D25: 0.02 | E25: 0.02 | F25: 0.02 | G25: 0.02 | H25: 0.02 | I25: 0.02 | J25: 0.04
A26: Länge der Teilstrecke | B26: l in m | C26: 3.5 | D26: 2 | E26: 2 | F26: 5 | G26: 4 | H26: 1.5 | I26: 2.5 | J26: 3.5
A27: Zuschlag für Einbauten / Formteile | B27: f | C27: 0.4 | D27: 0.4 | E27: 0.4 | F27: 0.4 | G27: 0.4 | H27: 0.4 | I27: 0.4 | J27: 0.4
A28: Druckverlust | B28: dp in mbar | C28: =(C26*C25)+(C26*C25*C27) -> 0.098 | D28: =(D26*D25)+(D26*D25*D27) -> 0.056 | E28: 0.056 | F28: 0.14 | G28: 0.112 | H28: 0.042 | I28: 0.07 | J28: 0.196
A30: maximal erlaubter Druckverlust in Verteilleitung: 0,03 bar

Sheet Verteilleitungen
A2: Berechnung Druckluftnetz
A3: Verteilleitungen
A5: Bauvorhaben: | C5: Tierklinik Oberhaching
A7: Projekt-Nr.: | C7: 11-25
A9: Datum: | C9: 2012-01-26
A12: Teilstrecke | C12: 3 | D12: 4 | E12: 5 | F12: 10 | G12: 11 | H12: 12 | I12: 15
A14: Leitungsdurchmesser Vorauswahl | B14: DN | C14: 12 | D14: 12 | E14: 12 | F14: 12 | G14: 12 | H14: 12 | I14: 12
A15: Versorgungsüberdruck | B15: pÜ in bar | C15: 15 | D15: 15 | E15: 15 | F15: 15 | G15: 15 | H15: 15 | I15: 15
A16: Betriebstemperatur | B16: TB in °C | C16: 20 | D16: 20 | E16: 20 | F16: 20 | G16: 20 | H16: 20 | I16: 20
A17: Druckluftbedarf | B17: VN in Nm³/h | C17: 6 | D17: 4.5 | E17: 3 | F17: 4.5 | G17: 10.08 | H17: 3 | I17: 7.08
A18: Gleichzeitigkeit | C18: 0.86 | D18: 0.89 | E18: 0.94 | F18: 0.89 | G18: 0.65 | H18: 0.94 | I18: 0.85
A19: Mittlere Einschaltdauer | B19: ED | C19: 0.5 | D19: 0.5 | E19: 0.5 | F19: 0.5 | G19: 0.5 | H19: 0.5 | I19: 0.5
A20: Zuschlag für Leckage | B20: v | C20: 0.05 | D20: 0.05 | E20: 0.05 | F20: 0.05 | G20: 0.05 | H20: 0.05 | I20: 0.05
A21: Reserve für Erweiterung | B21: r | C21: 0 | D21: 0 | E21: 0 | F21: 0 | G21: 0 | H21: 0 | I21: 0
A22: Volumenstrom | B22: VN in Nm³/h | C22: =(C17*C18*C19)*(1+C20) -> 2.709 | D22: =(D17*D18*D19)*(1+D20) -> 2.102625 | E22: 1.4805 | F22: 2.102625 | G22: 3.4398 | H22: 1.4805 | I22: 3.15945
A23: Betriebsvolumenstrom | B23: VB in Nm³/h | C23: =C22*1.01325*(273+C16)/(C15+1.01325)/273 -> 0.1839717361 | D23: =D22*1.01325*(273+D16)/(D15+1.01325)/273 -> 0.1427920161 | E23: 0.100542693 | F23: 0.1427920161 | G23: 0.2336013208 | H23: 0.100542693 | I23: 0.2145623853
A24: Fließgeschwindigkeit | B24: v in m/s | C24: =C23/3600/(POWER(C14/1000,2)/4*PI()) -> 0.4518520246 | D24: =D23/3600/(POWER(D14/1000,2)/4*PI()) -> 0.3507107284 | E24: 0.2469423856 | F24: 0.3507107284 | G24: 0.5737469894 | H24: 0.2469423856 | I24: 0.526985559
A25: Druckverlust | B25: R in mbar/m | C25: 0.04 | D25: 0.03 | E25: 0.02 | F25: 0.03 | G25: 0.05 | H25: 0.02 | I25: 0.04
A26: Länge der Teilstrecke | B26: l in m | C26: 15 | D26: 8 | E26: 2 | F26: 15 | G26: 15 | H26: 8 | I26: 3
A27: Zuschlag für Einbauten / Formteile | B27: f | C27: 0.4 | D27: 0.4 | E27: 0.4 | F27: 0.4 | G27: 0.4 | H27: 0.4 | I27: 0.4
A28: Druckverlust | B28: dp in mbar | C28: =(C26*C25)+(C26*C25*C27) -> 0.84 | D28: =(D26*D25)+(D26*D25*D27) -> 0.336 | E28: 0.056 | F28: 0.63 | G28: 1.05 | H28: 0.224 | I28: 0.168
A30: Druckverlust kumuliert | B30: dpges in mbar | C30: =D30+C28 -> 1.232 | D30: =E30+D28 -> 0.392 | E30: =E28 -> 0.056 | F30: =G30+F28 -> 1.904 | G30: =H30+G28 -> 1.274 | H30: =H28 -> 0.224 | I30: =I28 -> 0.168
A32: maximal erlaubter Druckverlust in Verteilleitung: 0,03 bar

Sheet Hauptleitungen
A2: Berechnung Druckluftnetz
A3: Hauptleitungen
A5: Bauvorhaben: | C5: Tierklinik Oberhaching
A7: Projekt-Nr.: | C7: 11-25
A9: Datum: | C9: 2012-01-26
A12: Teilstrecke | C12: 1 | D12: 2
A14: Leitungsdurchmesser Vorauswahl | B14: DN | C14: 12 | D14: 12
A15: Versorgungsüberdruck | B15: pÜ in bar | C15: 15 | D15: 15
A16: Betriebstemperatur | B16: TB in °C | C16: 20 | D16: 20
A17: Druckluftbedarf | B17: VN in Nm³/h | C17: 20.58 | D17: 10.5
A18: Gleichzeitigkeit | C18: 0.86 | D18: 0.86
A19: Mittlere Einschaltdauer | B19: ED | C19: 0.5 | D19: 0.5
A20: Zuschlag für Leckage | B20: v | C20: 0.05 | D20: 0.05
A21: Reserve für Erweiterung | B21: r | C21: 0 | D21: 0
A22: Volumenstrom | B22: VN in Nm³/h | C22: =(C17*C18*C19)*(1+C20) -> 9.29187 | D22: =(D17*D18*D19)*(1+D20) -> 4.74075
A23: Betriebsvolumenstrom | B23: VB in Nm³/h | C23: =C22*1.01325*(273+C16)/(C15+1.01325)/273 -> 0.631023055 | D23: =D22*1.01325*(273+D16)/(D15+1.01325)/273 -> 0.3219505383
A24: Fließgeschwindigkeit | B24: v in m/s | C24: =C23/3600/(POWER(C14/1000,2)/4*PI()) -> 1.549852445 | D24: =D23/3600/(POWER(D14/1000,2)/4*PI()) -> 0.7907410431
A25: Druckverlust | B25: R in mbar/m | C25: 0.25 | D25: 0.09
A26: Länge der Teilstrecke | B26: l in m | C26: 2 | D26: 2
A27: Zuschlag für Einbauten / Formteile | B27: f | C27: 0.4 | D27: 0.4
A28: Druckverlust | B28: dp in mbar | C28: =(C26*C25)+(C26*C25*C27) -> 0.7 | D28: =(D26*D25)+(D26*D25*D27) -> 0.252
A30: Druckverlust kumuliert | B30: dpges in mbar | C30: =D28+C28 -> 0.952
A32: maximal erlaubter Druckverlust in Hauptleitung: 0,04 bar
